[Event "*** Titled Tuesday Blitz"]
[Site "Chess.com"]
[Date "2020.11.24"]
[Round "2"]
[White "maxip32"]
[Black "GregShahade"]
[Result "0-1"]
[WhiteElo "2492"]
[BlackElo "2738"]
[TimeControl "180+1"]
[EndTime "10:34:17 PST"]
[Termination "GregShahade won on time"]

1. e4 {[%clk 0:03:00.9]} 1... e5 {[%clk 0:02:59]} 2. Nf3 {[%clk 0:03:01.2]} 2...
Nc6 {[%clk 0:02:59.4]} 3. Bc4 {[%clk 0:03:01.7]} 3... Nf6 {[%clk 0:02:58.8]} 4.
d3 {[%clk 0:03:02.2]} 4... Bc5 {[%clk 0:02:58.9]} 5. O-O {[%clk 0:03:02.6]} 5...
a6 {[%clk 0:02:58.2]} 6. a4 {[%clk 0:03:02]} 6... d6 {[%clk 0:02:57.7]} 7. c3
{[%clk 0:03:01.7]} 7... Ba7 {[%clk 0:02:57.8]} 8. Na3 {[%clk 0:03:01.5]} 8...
O-O {[%clk 0:02:54.8]} 9. Nc2 {[%clk 0:03:01.7]} 9... Ne7 {[%clk 0:02:54.4]} 10.
Be3 {[%clk 0:03:01.9]} 10... Ng6 {[%clk 0:02:48.6]} 11. Bxa7 {[%clk 0:03:01.2]}
11... Rxa7 {[%clk 0:02:49.5]} 12. Ne3 {[%clk 0:02:57.6]} 12... c6 {[%clk
0:02:49.3]} 13. Bb3 {[%clk 0:02:51.4]} 13... d5 {[%clk 0:02:47.4]} 14. exd5
{[%clk 0:02:50.6]} 14... cxd5 {[%clk 0:02:45.6]} 15. d4 {[%clk 0:02:50.8]} 15...
e4 {[%clk 0:02:43.4]} 16. Ne5 {[%clk 0:02:50.4]} 16... Qd6 {[%clk 0:02:38.4]}
17. Nxg6 {[%clk 0:02:39.2]} 17... hxg6 {[%clk 0:02:39.3]} 18. f4 {[%clk
0:02:38.2]} 18... exf3 {[%clk 0:02:31.5]} 19. Qxf3 {[%clk 0:02:37.1]} 19... Be6
{[%clk 0:02:30.8]} 20. Bc2 {[%clk 0:02:31.1]} 20... Raa8 {[%clk 0:02:26.2]} 21.
h3 {[%clk 0:02:11.7]} 21... Rfe8 {[%clk 0:02:22.1]} 22. Nd1 {[%clk 0:02:08.9]}
22... Ne4 {[%clk 0:02:16.2]} 23. Qf4 {[%clk 0:01:21.5]} 23... g5 {[%clk
0:01:46.1]} 24. Qxd6 {[%clk 0:01:18.6]} 24... Nxd6 {[%clk 0:01:47]} 25. Nf2
{[%clk 0:01:11.3]} 25... Nc4 {[%clk 0:01:43.8]} 26. Nd3 {[%clk 0:01:09.5]} 26...
Ne3 {[%clk 0:01:36.3]} 27. Rf2 {[%clk 0:01:05]} 27... Nxc2 {[%clk 0:01:29.3]}
28. Rxc2 {[%clk 0:01:05.9]} 28... Bf5 {[%clk 0:01:29.7]} 29. Rd2 {[%clk
0:01:06.4]} 29... Bxd3 {[%clk 0:01:25.3]} 30. Rxd3 {[%clk 0:01:07.3]} 30... Re2
{[%clk 0:01:25.4]} 31. Rb1 {[%clk 0:01:03.4]} 31... b5 {[%clk 0:01:16.7]} 32.
axb5 {[%clk 0:00:54.9]} 32... axb5 {[%clk 0:01:16.5]} 33. Kf1 {[%clk 0:00:55.8]}
33... Rc2 {[%clk 0:01:14.4]} 34. Re3 {[%clk 0:00:53.7]} 34... b4 {[%clk
0:00:50.5]} 35. Re2 {[%clk 0:00:21]} 35... Rxe2 {[%clk 0:00:50]} 36. Kxe2 {[%clk
0:00:21.5]} 36... bxc3 {[%clk 0:00:44.5]} 37. bxc3 {[%clk 0:00:22.4]} 37... Ra2+
{[%clk 0:00:44.7]} 38. Kf3 {[%clk 0:00:21.3]} 38... Rc2 {[%clk 0:00:44.1]} 39.
Rb8+ {[%clk 0:00:20.5]} 39... Kh7 {[%clk 0:00:43.7]} 40. Rc8 {[%clk 0:00:20.8]}
40... Kg6 {[%clk 0:00:37.4]} 41. Rc5 {[%clk 0:00:20.5]} 41... f6 {[%clk
0:00:36]} 42. g3 {[%clk 0:00:16.1]} 42... Kf7 {[%clk 0:00:34.2]} 43. Rxd5 {[%clk
0:00:13.6]} 43... Rxc3+ {[%clk 0:00:33.6]} 44. Kg4 {[%clk 0:00:09.9]} 44... Kg6
{[%clk 0:00:30.2]} 45. h4 {[%clk 0:00:08.7]} 45... gxh4 {[%clk 0:00:14.7]} 46.
gxh4 {[%clk 0:00:09.6]} 46... Rd3 {[%clk 0:00:13.2]} 47. h5+ {[%clk 0:00:09.6]}
47... Kh6 {[%clk 0:00:13.3]} 48. Rd7 {[%clk 0:00:07.3]} 48... Rd1 {[%clk
0:00:05]} 49. Rd6 {[%clk 0:00:05.6]} 49... Rg1+ {[%clk 0:00:04.3]} 50. Kh4
{[%clk 0:00:03.4]} 50... Rh1+ {[%clk 0:00:04.2]} 51. Kg4 {[%clk 0:00:03.7]}
51... Rxh5 {[%clk 0:00:04.9]} 52. d5 {[%clk 0:00:04.2]} 52... Rh1 {[%clk
0:00:04.7]} 53. Rd8 {[%clk 0:00:03.8]} 53... Rd1 {[%clk 0:00:04.9]} 54. d6
{[%clk 0:00:02.7]} 54... Kg6 {[%clk 0:00:05.5]} 0-1

[Event "*** Titled Tuesday Blitz"]
[Site "Chess.com"]
[Date "2020.11.24"]
[Round "2"]
[White "Slovak_fighter2000"]
[Black "Matols"]
[Result "1/2-1/2"]
[WhiteElo "2450"]
[BlackElo "2259"]
[TimeControl "180+1"]
[EndTime "10:34:18 PST"]
[Termination "Game drawn by repetition"]

1. e4 {[%clk 0:03:00.9]} 1... e6 {[%clk 0:02:59.8]} 2. d4 {[%clk 0:02:54]} 2...
d5 {[%clk 0:02:59.9]} 3. Bd3 {[%clk 0:02:54.5]} 3... c5 {[%clk 0:02:52.5]} 4.
exd5 {[%clk 0:02:54]} 4... Qxd5 {[%clk 0:02:49]} 5. Nc3 {[%clk 0:02:50.9]} 5...
Qxd4 {[%clk 0:02:43]} 6. Nf3 {[%clk 0:02:49.7]} 6... Qd8 {[%clk 0:02:39.9]} 7.
Bf4 {[%clk 0:02:43.7]} 7... Nf6 {[%clk 0:02:29.1]} 8. Qe2 {[%clk 0:02:42]} 8...
Bd6 {[%clk 0:02:10.8]} 9. Bxd6 {[%clk 0:02:32.5]} 9... Qxd6 {[%clk 0:02:10.3]}
10. Rd1 {[%clk 0:02:33.1]} 10... Qe7 {[%clk 0:01:59.3]} 11. Bb5+ {[%clk
0:02:20.2]} 11... Bd7 {[%clk 0:01:57.7]} 12. Ne5 {[%clk 0:02:17.2]} 12... O-O
{[%clk 0:01:44.1]} 13. Nxd7 {[%clk 0:02:07.1]} 13... Nbxd7 {[%clk 0:01:42.9]}
14. O-O {[%clk 0:02:03.3]} 14... Rfd8 {[%clk 0:01:34.3]} 15. Qf3 {[%clk
0:01:54.8]} 15... a6 {[%clk 0:01:25.4]} 16. Bd3 {[%clk 0:01:38.2]} 16... Ne5
{[%clk 0:01:24]} 17. Qe2 {[%clk 0:01:36.3]} 17... Nxd3 {[%clk 0:01:23.8]} 18.
Rxd3 {[%clk 0:01:36.1]} 18... Rxd3 {[%clk 0:01:23.7]} 19. Qxd3 {[%clk 0:01:37]}
19... Rd8 {[%clk 0:01:23.2]} 20. Qf3 {[%clk 0:01:36.6]} 20... h6 {[%clk
0:01:20.6]} 21. h3 {[%clk 0:01:36.4]} 21... Rd4 {[%clk 0:00:59.3]} 22. Re1
{[%clk 0:01:31.7]} 22... Qd7 {[%clk 0:00:53.9]} 23. g3 {[%clk 0:01:27.4]} 23...
Rd2 {[%clk 0:00:46.7]} 24. Rc1 {[%clk 0:01:17.7]} 24... Qd4 {[%clk 0:00:40.3]}
25. Kg2 {[%clk 0:01:08.4]} 25... Nd5 {[%clk 0:00:37.2]} 26. Ne4 {[%clk
0:00:57.8]} 26... Ne3+ {[%clk 0:00:20.5]} 27. Kh2 {[%clk 0:00:57.1]} 27... Rxc2
{[%clk 0:00:18.9]} 28. Rxc2 {[%clk 0:00:46]} 28... Nxc2 {[%clk 0:00:19]} 29. Nc3
{[%clk 0:00:45.8]} 29... Nb4 {[%clk 0:00:18.2]} 30. Kg2 {[%clk 0:00:38.5]} 30...
Nd3 {[%clk 0:00:18]} 31. Qe2 {[%clk 0:00:32]} 31... Ne5 {[%clk 0:00:15.9]} 32.
Kh2 {[%clk 0:00:25.4]} 32... g6 {[%clk 0:00:15.8]} 33. Ne4 {[%clk 0:00:24.3]}
33... Kg7 {[%clk 0:00:12]} 34. Kg2 {[%clk 0:00:22.2]} 34... Qd5 {[%clk
0:00:11.5]} 35. Kh2 {[%clk 0:00:20.5]} 35... f5 {[%clk 0:00:10.8]} 36. Nc3
{[%clk 0:00:20.5]} 36... Qd4 {[%clk 0:00:09.6]} 37. f4 {[%clk 0:00:16]} 37...
Nd3 {[%clk 0:00:09]} 38. Nd1 {[%clk 0:00:12.1]} 38... c4 {[%clk 0:00:07.7]} 39.
Qxe6 {[%clk 0:00:11.4]} 39... Nxb2 {[%clk 0:00:07.7]} 40. Qe7+ {[%clk 0:00:11]}
40... Kg8 {[%clk 0:00:08.1]} 41. Qe8+ {[%clk 0:00:10.8]} 41... Kg7 {[%clk
0:00:08.5]} 42. Qe7+ {[%clk 0:00:11]} 42... Kg8 {[%clk 0:00:09]} 43. Qe8+ {[%clk
0:00:10.9]} 43... Kg7 {[%clk 0:00:09.5]} 44. Nxb2 {[%clk 0:00:09.7]} 44... Qxb2+
{[%clk 0:00:09.1]} 45. Kg1 {[%clk 0:00:09.3]} 45... Qb1+ {[%clk 0:00:09.3]} 46.
Kh2 {[%clk 0:00:08.2]} 46... Qxa2+ {[%clk 0:00:09.6]} 47. Kg1 {[%clk 0:00:07.9]}
47... Qb1+ {[%clk 0:00:09.8]} 48. Kh2 {[%clk 0:00:08.1]} 48... Qc2+ {[%clk
0:00:10.1]} 49. Kg1 {[%clk 0:00:07.7]} 49... Qd1+ {[%clk 0:00:10.4]} 50. Kh2
{[%clk 0:00:07.6]} 50... Qd2+ {[%clk 0:00:10.6]} 51. Kg1 {[%clk 0:00:07.2]}
51... Qd4+ {[%clk 0:00:10.8]} 52. Kh2 {[%clk 0:00:06.9]} 52... Qd2+ {[%clk
0:00:10.9]} 53. Kg1 {[%clk 0:00:06.8]} 53... c3 {[%clk 0:00:11.3]} 54. Qe7+
{[%clk 0:00:06.5]} 54... Kg8 {[%clk 0:00:11.6]} 55. Qe8+ {[%clk 0:00:06.8]}
55... Kg7 {[%clk 0:00:11.4]} 56. Qe7+ {[%clk 0:00:07.7]} 56... Kg8 {[%clk
0:00:11.8]} 57. Qe8+ {[%clk 0:00:08.1]} 57... Kg7 {[%clk 0:00:12.2]} 1/2-1/2

[Event "*** Titled Tuesday Blitz"]
[Site "Chess.com"]
[Date "2020.11.24"]
[Round "2"]
[White "Shahinyan_ChessMood"]
[Black "zocpoc71"]
[Result "1-0"]
[WhiteElo "2840"]
[BlackElo "2520"]
[TimeControl "180+1"]
[EndTime "10:34:19 PST"]
[Termination "Shahinyan_ChessMood won on time"]

1. e4 {[%clk 0:03:00.9]} 1... e5 {[%clk 0:02:59.3]} 2. Nf3 {[%clk 0:03:00.6]}
2... Nc6 {[%clk 0:02:59.8]} 3. d4 {[%clk 0:03:01.4]} 3... exd4 {[%clk
0:02:58.8]} 4. Nxd4 {[%clk 0:03:02.3]} 4... Bc5 {[%clk 0:02:58.3]} 5. Nb3 {[%clk
0:03:02.1]} 5... Bb6 {[%clk 0:02:58.1]} 6. Nc3 {[%clk 0:03:03]} 6... d6 {[%clk
0:02:57.5]} 7. Qe2 {[%clk 0:03:03.6]} 7... Nge7 {[%clk 0:02:54.5]} 8. Be3 {[%clk
0:03:03.2]} 8... O-O {[%clk 0:02:54.2]} 9. O-O-O {[%clk 0:03:03.2]} 9... f5
{[%clk 0:02:53.4]} 10. f4 {[%clk 0:03:03.7]} 10... fxe4 {[%clk 0:02:51.2]} 11.
Bxb6 {[%clk 0:02:32.7]} 11... axb6 {[%clk 0:02:49.1]} 12. g3 {[%clk 0:02:33.3]}
12... Bf5 {[%clk 0:02:28.6]} 13. Bg2 {[%clk 0:02:31]} 13... Qd7 {[%clk
0:02:26.1]} 14. h3 {[%clk 0:02:28.6]} 14... Bg6 {[%clk 0:02:12.7]} 15. Rhe1
{[%clk 0:02:22.8]} 15... Na5 {[%clk 0:01:31.9]} 16. Nxa5 {[%clk 0:01:47]} 16...
Rxa5 {[%clk 0:01:29.1]} 17. Bxe4 {[%clk 0:01:47.6]} 17... Bxe4 {[%clk
0:01:25.6]} 18. Qxe4 {[%clk 0:01:46.7]} 18... Rf7 {[%clk 0:01:08]} 19. g4 {[%clk
0:01:45.9]} 19... Ng6 {[%clk 0:00:50.5]} 20. f5 {[%clk 0:01:40.7]} 20... Ne5
{[%clk 0:00:48.2]} 21. Qxb7 {[%clk 0:01:29.4]} 21... Qe7 {[%clk 0:00:19.9]} 22.
Nd5 {[%clk 0:01:03.6]} 22... Qh4 {[%clk 0:00:19]} 23. Kb1 {[%clk 0:01:04.2]}
23... h6 {[%clk 0:00:15.9]} 24. Qc8+ {[%clk 0:00:56.2]} 24... Kh7 {[%clk
0:00:14]} 25. Qe6 {[%clk 0:00:56.2]} 25... Rf8 {[%clk 0:00:11.2]} 26. f6 {[%clk
0:00:45.4]} 26... Rxf6 {[%clk 0:00:09.4]} 27. Nxf6+ {[%clk 0:00:43.8]} 27...
Qxf6 {[%clk 0:00:10.3]} 28. Qxf6 {[%clk 0:00:40]} 28... gxf6 {[%clk 0:00:11.2]}
29. Rf1 {[%clk 0:00:40.1]} 29... Kg6 {[%clk 0:00:11]} 30. Rf5 {[%clk 0:00:40.6]}
30... Ra8 {[%clk 0:00:08.8]} 31. b3 {[%clk 0:00:39.7]} 31... Rf8 {[%clk
0:00:09.2]} 32. a4 {[%clk 0:00:38.5]} 32... Rh8 {[%clk 0:00:08.8]} 33. Rdf1
{[%clk 0:00:37.9]} 33... Nd7 {[%clk 0:00:07.6]} 34. Kb2 {[%clk 0:00:38.1]} 34...
Re8 {[%clk 0:00:08.1]} 35. R1f3 {[%clk 0:00:31.9]} 35... Re4 {[%clk 0:00:08.5]}
36. Rc3 {[%clk 0:00:32.2]} 36... c5 {[%clk 0:00:07.2]} 37. Rd3 {[%clk
0:00:31.9]} 37... Re6 {[%clk 0:00:06.2]} 38. Rfd5 {[%clk 0:00:31.6]} 38... Ne5
{[%clk 0:00:06.2]} 39. Rd1 {[%clk 0:00:31.1]} 39... Nf3 {[%clk 0:00:05.8]} 40.
Rxd6 {[%clk 0:00:30.5]} 40... Re2 {[%clk 0:00:06.5]} 41. Rf1 {[%clk 0:00:23.6]}
41... Nd4 {[%clk 0:00:05.8]} 42. Rdxf6+ {[%clk 0:00:24]} 42... Kg5 {[%clk
0:00:06.1]} 43. R1f2 {[%clk 0:00:24]} 43... Re3 {[%clk 0:00:03.1]} 44. Rxb6
{[%clk 0:00:20.7]} 44... Kh4 {[%clk 0:00:02]} 45. c3 {[%clk 0:00:20.3]} 45...
Kg3 {[%clk 0:00:02.9]} 46. Rd2 {[%clk 0:00:18.9]} 46... Nf3 {[%clk 0:00:02.8]}
47. Rc2 {[%clk 0:00:19.5]} 47... Kxh3 {[%clk 0:00:03]} 48. a5 {[%clk 0:00:19.4]}
48... Kxg4 {[%clk 0:00:03.9]} 49. a6 {[%clk 0:00:19.9]} 49... Re7 {[%clk
0:00:04]} 50. Rb7 {[%clk 0:00:19.3]} 50... Re6 {[%clk 0:00:04.2]} 51. a7 {[%clk
0:00:19]} 51... Ra6 {[%clk 0:00:04.9]} 52. Re2 {[%clk 0:00:19]} 52... Kf4 {[%clk
0:00:03.1]} 53. Rf7+ {[%clk 0:00:18.2]} 53... Kg3 {[%clk 0:00:02.2]} 54. Re3
{[%clk 0:00:18.4]} 54... Kf2 {[%clk 0:00:02.4]} 55. Rexf3+ {[%clk 0:00:17.2]}
1-0

[Event "*** Titled Tuesday Blitz"]
[Site "Chess.com"]
[Date "2020.11.24"]
[Round "2"]
[White "konradrutkowski"]
[Black "CzechmVIII"]
[Result "1/2-1/2"]
[WhiteElo "2405"]
[BlackElo "2143"]
[TimeControl "180+1"]
[EndTime "10:34:25 PST"]
[Termination "Game drawn - insufficient material"]

1. e4 {[%clk 0:03:00.9]} 1... c5 {[%clk 0:02:59.8]} 2. Nf3 {[%clk 0:03:00.5]}
2... d6 {[%clk 0:03:00]} 3. d4 {[%clk 0:03:00.5]} 3... cxd4 {[%clk 0:03:00.9]}
4. Nxd4 {[%clk 0:03:00.4]} 4... Nf6 {[%clk 0:03:01.5]} 5. Nc3 {[%clk 0:03:00.9]}
5... g6 {[%clk 0:03:02.2]} 6. Be3 {[%clk 0:02:52.8]} 6... Bg7 {[%clk 0:03:02.1]}
7. f3 {[%clk 0:02:52.9]} 7... Nc6 {[%clk 0:03:02.3]} 8. Qd2 {[%clk 0:02:52.4]}
8... O-O {[%clk 0:03:02.3]} 9. O-O-O {[%clk 0:02:51.5]} 9... d5 {[%clk
0:03:01.5]} 10. Kb1 {[%clk 0:02:51.4]} 10... Nxd4 {[%clk 0:02:59.5]} 11. e5
{[%clk 0:02:45.4]} 11... Nf5 {[%clk 0:02:59.4]} 12. exf6 {[%clk 0:02:41.8]}
12... exf6 {[%clk 0:02:58.6]} 13. Bc5 {[%clk 0:02:32.4]} 13... d4 {[%clk
0:02:58.6]} 14. Ne4 {[%clk 0:02:26.4]} 14... Ne3 {[%clk 0:02:42.5]} 15. Re1
{[%clk 0:02:23.3]} 15... f5 {[%clk 0:02:40.8]} 16. Bxf8 {[%clk 0:02:14.2]} 16...
Qxf8 {[%clk 0:02:40.6]} 17. Nf2 {[%clk 0:02:04.2]} 17... Be6 {[%clk 0:02:27.5]}
18. Nd1 {[%clk 0:02:03.5]} 18... f4 {[%clk 0:02:17.7]} 19. Nxe3 {[%clk
0:02:03.2]} 19... dxe3 {[%clk 0:02:16.6]} 20. Qa5 {[%clk 0:02:02]} 20... Qd6
{[%clk 0:01:43.8]} 21. Bd3 {[%clk 0:01:59.6]} 21... Qd4 {[%clk 0:01:41.5]} 22.
Qa3 {[%clk 0:01:54.8]} 22... b5 {[%clk 0:01:30.3]} 23. Bxb5 {[%clk 0:01:24.3]}
23... Rb8 {[%clk 0:01:23.9]} 24. c3 {[%clk 0:01:24.6]} 24... Qxc3 {[%clk
0:01:10]} 25. Qxc3 {[%clk 0:01:21.7]} 25... Bxc3 {[%clk 0:01:06.4]} 26. Rc1
{[%clk 0:01:21]} 26... Bg7 {[%clk 0:00:59]} 27. Rc5 {[%clk 0:01:07.6]} 27... a6
{[%clk 0:00:55.6]} 28. Bc4 {[%clk 0:00:56.3]} 28... Rxb2+ {[%clk 0:00:51.8]} 29.
Kc1 {[%clk 0:00:56.2]} 29... Rxg2 {[%clk 0:00:45.7]} 30. Bxe6 {[%clk 0:00:54.9]}
30... fxe6 {[%clk 0:00:45.5]} 31. Rc6 {[%clk 0:00:34.3]} 31... Rxa2 {[%clk
0:00:38.2]} 32. Rd1 {[%clk 0:00:32.7]} 32... e2 {[%clk 0:00:28.2]} 33. Re1
{[%clk 0:00:32]} 33... e5 {[%clk 0:00:17.5]} 34. Rc2 {[%clk 0:00:29.8]} 34...
Rxc2+ {[%clk 0:00:13.6]} 35. Kxc2 {[%clk 0:00:30.7]} 35... e4 {[%clk 0:00:14.2]}
36. Rxe2 {[%clk 0:00:26]} 36... exf3 {[%clk 0:00:14.5]} 37. Rf2 {[%clk
0:00:25.8]} 37... Be5 {[%clk 0:00:12.9]} 38. Rxf3 {[%clk 0:00:25.7]} 38... g5
{[%clk 0:00:13.4]} 39. h3 {[%clk 0:00:15.5]} 39... h5 {[%clk 0:00:13]} 40. Rd3
{[%clk 0:00:15.7]} 40... g4 {[%clk 0:00:12.8]} 41. Rd5 {[%clk 0:00:15.5]} 41...
Bc7 {[%clk 0:00:07.3]} 42. hxg4 {[%clk 0:00:14.3]} 42... hxg4 {[%clk 0:00:07]}
43. Rg5+ {[%clk 0:00:14.9]} 43... Kf7 {[%clk 0:00:07.4]} 44. Rxg4 {[%clk
0:00:15.6]} 44... Ke6 {[%clk 0:00:07.7]} 45. Kd3 {[%clk 0:00:16]} 45... Kf5
{[%clk 0:00:07.7]} 46. Rg7 {[%clk 0:00:15.2]} 46... Ba5 {[%clk 0:00:07.3]} 47.
Ra7 {[%clk 0:00:13.8]} 47... Bb6 {[%clk 0:00:06.3]} 48. Rxa6 {[%clk 0:00:13.7]}
48... Be3 {[%clk 0:00:07]} 49. Ke2 {[%clk 0:00:12.1]} 49... Kg4 {[%clk
0:00:07.3]} 50. Rg6+ {[%clk 0:00:10.5]} 50... Kf5 {[%clk 0:00:07.4]} 51. Rg8
{[%clk 0:00:10.5]} 51... Ke5 {[%clk 0:00:07.4]} 52. Kf3 {[%clk 0:00:10.1]} 52...
Kf5 {[%clk 0:00:07.5]} 53. Rb8 {[%clk 0:00:08.1]} 53... Ke5 {[%clk 0:00:07.9]}
54. Rb5+ {[%clk 0:00:07.5]} 54... Kf6 {[%clk 0:00:07.4]} 55. Ke4 {[%clk
0:00:07.6]} 55... Kg6 {[%clk 0:00:07.3]} 56. Ra5 {[%clk 0:00:04.8]} 56... Kf6
{[%clk 0:00:07.6]} 57. Rf5+ {[%clk 0:00:03.3]} 57... Ke6 {[%clk 0:00:07.6]} 58.
Rxf4 {[%clk 0:00:02.7]} 58... Bxf4 {[%clk 0:00:07.1]} 1/2-1/2

[Event "*** Titled Tuesday Blitz"]
[Site "Chess.com"]
[Date "2020.11.24"]
[Round "2"]
[White "Harry_Rakkel"]
[Black "Durarbayli"]
[Result "0-1"]
[WhiteElo "2498"]
[BlackElo "2765"]
[TimeControl "180+1"]
[EndTime "10:34:28 PST"]
[Termination "Durarbayli won by resignation"]

1. c4 {[%clk 0:03:00.9]} 1... c5 {[%clk 0:02:57.1]} 2. g3 {[%clk 0:02:59.4]}
2... Nc6 {[%clk 0:02:56.4]} 3. Bg2 {[%clk 0:02:59.2]} 3... g6 {[%clk 0:02:57]}
4. e4 {[%clk 0:02:58.1]} 4... Bg7 {[%clk 0:02:56.9]} 5. Ne2 {[%clk 0:02:58.4]}
5... e6 {[%clk 0:02:54.7]} 6. Nbc3 {[%clk 0:02:57.9]} 6... Nge7 {[%clk 0:02:55]}
7. O-O {[%clk 0:02:57.4]} 7... O-O {[%clk 0:02:54.9]} 8. d3 {[%clk 0:02:57.2]}
8... b6 {[%clk 0:02:48.3]} 9. a3 {[%clk 0:02:54.4]} 9... Bb7 {[%clk 0:02:47.1]}
10. Rb1 {[%clk 0:02:54]} 10... d6 {[%clk 0:02:35.6]} 11. b4 {[%clk 0:02:52.8]}
11... Qd7 {[%clk 0:02:36.2]} 12. Bd2 {[%clk 0:02:50.1]} 12... Rad8 {[%clk
0:02:20.8]} 13. Qc1 {[%clk 0:02:48.1]} 13... Ne5 {[%clk 0:02:12.7]} 14. Qc2
{[%clk 0:02:46.8]} 14... f5 {[%clk 0:02:06.6]} 15. f4 {[%clk 0:02:16.8]} 15...
Nf7 {[%clk 0:02:06.3]} 16. h3 {[%clk 0:01:58.2]} 16... Qc8 {[%clk 0:01:50.3]}
17. Be3 {[%clk 0:01:51.4]} 17... Qa8 {[%clk 0:01:49.9]} 18. Kh2 {[%clk
0:01:48.5]} 18... d5 {[%clk 0:01:46]} 19. cxd5 {[%clk 0:01:44.2]} 19... exd5
{[%clk 0:01:46]} 20. Nb5 {[%clk 0:01:20.9]} 20... d4 {[%clk 0:01:28.6]} 21. Bg1
{[%clk 0:01:12.6]} 21... fxe4 {[%clk 0:01:28.4]} 22. Nc1 {[%clk 0:00:36.1]}
22... exd3 {[%clk 0:01:20.2]} 23. Nxd3 {[%clk 0:00:37]} 23... Bxg2 {[%clk
0:01:19.1]} 24. Qxg2 {[%clk 0:00:33.7]} 24... Qxg2+ {[%clk 0:01:18.5]} 25. Kxg2
{[%clk 0:00:34.6]} 25... c4 {[%clk 0:01:15.8]} 26. Nb2 {[%clk 0:00:34.6]} 26...
c3 {[%clk 0:01:07.2]} 27. Nd3 {[%clk 0:00:34.4]} 27... Rd7 {[%clk 0:00:56.9]}
28. Rfe1 {[%clk 0:00:29]} 28... Nf5 {[%clk 0:00:49.4]} 29. a4 {[%clk 0:00:19.9]}
29... a6 {[%clk 0:00:40.9]} 30. Na3 {[%clk 0:00:19.3]} 30... Rc8 {[%clk
0:00:40.9]} 31. Nc2 {[%clk 0:00:18.9]} 31... h5 {[%clk 0:00:26.6]} 32. Re6
{[%clk 0:00:18.4]} 32... Rd6 {[%clk 0:00:20]} 33. Rbe1 {[%clk 0:00:17.7]} 33...
Ne3+ {[%clk 0:00:18]} 34. R1xe3 {[%clk 0:00:12.1]} 34... dxe3 {[%clk 0:00:17.4]}
35. Rxd6 {[%clk 0:00:12.7]} 35... Nxd6 {[%clk 0:00:18.3]} 36. Bxe3 {[%clk
0:00:12.8]} 36... b5 {[%clk 0:00:14.6]} 37. axb5 {[%clk 0:00:12.9]} 37... axb5
{[%clk 0:00:15.5]} 38. Kf3 {[%clk 0:00:13.5]} 38... Nf5 {[%clk 0:00:15.2]} 39.
Bf2 {[%clk 0:00:13]} 39... Rd8 {[%clk 0:00:15.3]} 40. Ke2 {[%clk 0:00:13.2]}
40... Nd4+ {[%clk 0:00:12.5]} 41. Kd1 {[%clk 0:00:11.4]} 41... Nxc2 {[%clk
0:00:10.4]} 42. Kxc2 {[%clk 0:00:12.3]} 42... Re8 {[%clk 0:00:11.1]} 43. Ne5
{[%clk 0:00:09.7]} 43... Bxe5 {[%clk 0:00:10.4]} 44. fxe5 {[%clk 0:00:10.6]}
44... Rxe5 {[%clk 0:00:11]} 45. Kxc3 {[%clk 0:00:11.5]} 45... Rd5 {[%clk
0:00:11.9]} 46. Bc5 {[%clk 0:00:10.6]} 46... Kf7 {[%clk 0:00:12.4]} 47. h4
{[%clk 0:00:10.3]} 47... Ke6 {[%clk 0:00:12.5]} 48. Be3 {[%clk 0:00:10.1]} 48...
Kf5 {[%clk 0:00:13]} 49. Bf4 {[%clk 0:00:10.8]} 49... Ke4 {[%clk 0:00:13.6]} 50.
Bc7 {[%clk 0:00:10.8]} 50... Rd3+ {[%clk 0:00:14.1]} 51. Kc2 {[%clk 0:00:11.4]}
51... Rf3 {[%clk 0:00:13.5]} 52. Bd6 {[%clk 0:00:08.7]} 52... Kd5 {[%clk
0:00:13.8]} 53. Bb8 {[%clk 0:00:07.8]} 53... Kc4 {[%clk 0:00:14.3]} 54. Bd6
{[%clk 0:00:07.7]} 54... Rd3 {[%clk 0:00:14.8]} 55. Be5 {[%clk 0:00:06.4]} 55...
Re3 {[%clk 0:00:14.3]} 56. Bd6 {[%clk 0:00:06.4]} 56... Rc3+ {[%clk 0:00:14.6]}
57. Kb2 {[%clk 0:00:05.9]} 57... Rd3 {[%clk 0:00:14.8]} 58. Be5 {[%clk
0:00:05.9]} 58... Kxb4 {[%clk 0:00:13.9]} 59. Bf4 {[%clk 0:00:06.8]} 59... Kc4
{[%clk 0:00:14.8]} 60. Bb8 {[%clk 0:00:06.7]} 60... b4 {[%clk 0:00:15]} 61. Bf4
{[%clk 0:00:07.6]} 61... b3 {[%clk 0:00:15.4]} 62. Ka3 {[%clk 0:00:06.5]} 62...
Rf3 {[%clk 0:00:14.5]} 0-1